[Event "*** Titled Tuesday Blitz"]
[Site "Chess.com"]
[Date "2021.04.20"]
[Round "4"]
[White "noblerone"]
[Black "allejam"]
[Result "1/2-1/2"]
[WhiteElo "2397"]
[BlackElo "2216"]
[TimeControl "180+1"]
[EndTime "10:37:31 PDT"]
[Termination "Game drawn by repetition"]

1. d4 {[%clk 0:03:00.9]} 1... d5 {[%clk 0:03:00]} 2. Nf3 {[%clk 0:03:01.1]} 2...
Nf6 {[%clk 0:03:00.1]} 3. Bg5 {[%clk 0:03:01.4]} 3... Bf5 {[%clk 0:02:59.2]} 4.
c4 {[%clk 0:02:59.4]} 4... e6 {[%clk 0:02:59.3]} 5. Nc3 {[%clk 0:02:59.7]} 5...
Be7 {[%clk 0:02:59.5]} 6. e3 {[%clk 0:02:58.3]} 6... O-O {[%clk 0:02:59.5]} 7.
Be2 {[%clk 0:02:57.1]} 7... c6 {[%clk 0:02:59.7]} 8. Qb3 {[%clk 0:02:55.5]} 8...
Nbd7 {[%clk 0:02:56.2]} 9. O-O {[%clk 0:02:54.8]} 9... Qb6 {[%clk 0:02:55]} 10.
c5 {[%clk 0:02:54.5]} 10... Qc7 {[%clk 0:02:40.7]} 11. Bf4 {[%clk 0:02:51.9]}
11... Qc8 {[%clk 0:02:41.1]} 12. h3 {[%clk 0:02:51.3]} 12... Ne4 {[%clk
0:02:39.9]} 13. Nxe4 {[%clk 0:02:47.5]} 13... Bxe4 {[%clk 0:02:40]} 14. Qc3
{[%clk 0:02:45.7]} 14... Bd8 {[%clk 0:02:27.5]} 15. b4 {[%clk 0:02:35.3]} 15...
Bc7 {[%clk 0:02:27.4]} 16. Bxc7 {[%clk 0:02:26.2]} 16... Qxc7 {[%clk 0:02:26.9]}
17. a4 {[%clk 0:02:26.9]} 17... a6 {[%clk 0:02:25.1]} 18. b5 {[%clk 0:02:22.3]}
18... axb5 {[%clk 0:02:19.6]} 19. axb5 {[%clk 0:02:23.2]} 19... h6 {[%clk
0:02:13.3]} 20. b6 {[%clk 0:02:21.4]} 20... Qd8 {[%clk 0:02:03.1]} 21. Ra7
{[%clk 0:02:17.9]} 21... Rxa7 {[%clk 0:01:49.1]} 22. bxa7 {[%clk 0:02:18.8]}
22... Qc7 {[%clk 0:01:49.5]} 23. Ra1 {[%clk 0:02:13.9]} 23... Ra8 {[%clk
0:01:49.7]} 24. Nd2 {[%clk 0:02:07.6]} 24... Bg6 {[%clk 0:01:32.8]} 25. Qb4
{[%clk 0:01:57.2]} 25... b6 {[%clk 0:01:24.7]} 26. cxb6 {[%clk 0:01:51.4]} 26...
Nxb6 {[%clk 0:01:25.6]} 27. Ra6 {[%clk 0:01:38.6]} 27... Nc8 {[%clk 0:01:17.5]}
28. Qc5 {[%clk 0:01:27.3]} 28... Nxa7 {[%clk 0:00:54.6]} 29. Nf3 {[%clk
0:00:58.8]} 29... f6 {[%clk 0:00:50.3]} 30. Bb5 {[%clk 0:00:38.4]} 30... Qb7
{[%clk 0:00:36.8]} 31. Rb6 {[%clk 0:00:28.1]} 31... Qc7 {[%clk 0:00:22.8]} 32.
Ra6 {[%clk 0:00:16.4]} 32... Qb7 {[%clk 0:00:22.4]} 33. Rb6 {[%clk 0:00:16.4]}
33... Qc7 {[%clk 0:00:22.8]} 34. Ra6 {[%clk 0:00:10.4]} 1/2-1/2

[Event "*** Titled Tuesday Blitz"]
[Site "Chess.com"]
[Date "2021.04.20"]
[Round "4"]
[White "WashUntilHoles"]
[Black "saikrishnaReturns"]
[Result "0-1"]
[WhiteElo "2801"]
[BlackElo "2679"]
[TimeControl "180+1"]
[EndTime "10:37:33 PDT"]
[Termination "saikrishnaReturns won by resignation"]

1. e4 {[%clk 0:03:00.9]} 1... e5 {[%clk 0:02:59.8]} 2. Nf3 {[%clk 0:03:00.3]}
2... Nc6 {[%clk 0:03:00.4]} 3. Bb5 {[%clk 0:02:57.9]} 3... a6 {[%clk 0:03:00.4]}
4. Ba4 {[%clk 0:02:57.9]} 4... d6 {[%clk 0:03:00.8]} 5. c3 {[%clk 0:02:56.7]}
5... f5 {[%clk 0:03:00.8]} 6. exf5 {[%clk 0:02:32.2]} 6... Bxf5 {[%clk
0:03:01.7]} 7. d4 {[%clk 0:02:28.9]} 7... e4 {[%clk 0:03:00.9]} 8. d5 {[%clk
0:02:23.2]} 8... exf3 {[%clk 0:02:58.7]} 9. Qxf3 {[%clk 0:02:22]} 9... Bxb1
{[%clk 0:02:55.4]} 10. dxc6 {[%clk 0:02:11]} 10... b5 {[%clk 0:02:29.7]} 11.
Rxb1 {[%clk 0:02:09.2]} 11... bxa4 {[%clk 0:02:23.3]} 12. O-O {[%clk 0:02:09.6]}
12... Nf6 {[%clk 0:02:22.7]} 13. Bg5 {[%clk 0:01:45.3]} 13... Be7 {[%clk
0:02:00.6]} 14. Bxf6 {[%clk 0:01:45.5]} 14... Bxf6 {[%clk 0:02:00.5]} 15. Rbe1+
{[%clk 0:01:45.1]} 15... Kf8 {[%clk 0:01:55.4]} 16. Re6 {[%clk 0:01:41.2]} 16...
Rb8 {[%clk 0:01:51]} 17. Rfe1 {[%clk 0:01:36.7]} 17... Rxb2 {[%clk 0:01:24.2]}
18. g4 {[%clk 0:01:26.2]} 18... h6 {[%clk 0:01:04.9]} 19. h4 {[%clk 0:01:25.3]}
19... Rb5 {[%clk 0:00:57.3]} 20. c4 {[%clk 0:01:00.4]} 20... Rc5 {[%clk
0:00:53.8]} 21. Qf4 {[%clk 0:00:39.5]} 21... Kf7 {[%clk 0:00:47]} 22. Qe4 {[%clk
0:00:29.5]} 22... Rf8 {[%clk 0:00:42.3]} 23. Qh7 {[%clk 0:00:21.6]} 23... Rxc4
{[%clk 0:00:32.7]} 24. g5 {[%clk 0:00:21.7]} 24... hxg5 {[%clk 0:00:22.5]} 25.
Qh5+ {[%clk 0:00:22.6]} 25... Kg8 {[%clk 0:00:22.4]} 26. Re8 {[%clk 0:00:23.1]}
26... Rxh4 {[%clk 0:00:19.6]} 27. Qg6 {[%clk 0:00:19.2]} 27... Rh6 {[%clk
0:00:19.6]} 28. Rxf8+ {[%clk 0:00:15.8]} 28... Qxf8 {[%clk 0:00:18.1]} 29. Qf5
{[%clk 0:00:16.3]} 29... Be5 {[%clk 0:00:17.9]} 30. Qg4 {[%clk 0:00:04.4]} 30...
Qf4 {[%clk 0:00:16.8]} 0-1

[Event "*** Titled Tuesday Blitz"]
[Site "Chess.com"]
[Date "2021.04.20"]
[Round "4"]
[White "Zkid"]
[Black "TST2014"]
[Result "1-0"]
[WhiteElo "2831"]
[BlackElo "2650"]
[TimeControl "180+1"]
[EndTime "10:37:33 PDT"]
[Termination "Zkid won by resignation"]

1. d4 {[%clk 0:03:00.9]} 1... Nf6 {[%clk 0:02:59.6]} 2. c4 {[%clk 0:03:00.8]}
2... c5 {[%clk 0:02:57.4]} 3. d5 {[%clk 0:03:00.4]} 3... b5 {[%clk 0:02:57.5]}
4. cxb5 {[%clk 0:02:59.9]} 4... a6 {[%clk 0:02:57.7]} 5. bxa6 {[%clk 0:02:59.3]}
5... Bxa6 {[%clk 0:02:57.8]} 6. Nc3 {[%clk 0:02:59.8]} 6... g6 {[%clk
0:02:57.9]} 7. e4 {[%clk 0:03:00]} 7... Bxf1 {[%clk 0:02:57.6]} 8. Kxf1 {[%clk
0:03:00.9]} 8... d6 {[%clk 0:02:58]} 9. g3 {[%clk 0:02:57.9]} 9... Qc8 {[%clk
0:02:57.8]} 10. Kg2 {[%clk 0:02:56.3]} 10... Bg7 {[%clk 0:02:57.1]} 11. Nf3
{[%clk 0:02:56.2]} 11... O-O {[%clk 0:02:56.4]} 12. Bg5 {[%clk 0:02:53.3]} 12...
Nbd7 {[%clk 0:02:55.5]} 13. Qc1 {[%clk 0:02:48.3]} 13... Qa6 {[%clk 0:02:53.5]}
14. Bh6 {[%clk 0:02:46.4]} 14... Rfb8 {[%clk 0:02:53.2]} 15. Bxg7 {[%clk
0:02:44.6]} 15... Kxg7 {[%clk 0:02:54.1]} 16. Nd2 {[%clk 0:02:44]} 16... Qd3
{[%clk 0:02:51.2]} 17. Re1 {[%clk 0:02:39.1]} 17... Ne5 {[%clk 0:02:50]} 18. h3
{[%clk 0:02:34.2]} 18... Qa6 {[%clk 0:02:42.2]} 19. Re3 {[%clk 0:02:21.9]} 19...
Nd3 {[%clk 0:02:40.8]} 20. Qc2 {[%clk 0:02:21.5]} 20... Nxb2 {[%clk 0:02:31.9]}
21. Rb1 {[%clk 0:02:21.1]} 21... Nc4 {[%clk 0:02:26.5]} 22. Nxc4 {[%clk
0:02:19.6]} 22... Qxc4 {[%clk 0:02:25.6]} 23. Rxb8 {[%clk 0:02:08.7]} 23... Rxb8
{[%clk 0:02:24.8]} 24. Qd2 {[%clk 0:02:08.8]} 24... Nd7 {[%clk 0:01:56.9]} 25.
f4 {[%clk 0:02:05.3]} 25... f6 {[%clk 0:01:48.2]} 26. Nd1 {[%clk 0:01:51.3]}
26... Rb1 {[%clk 0:01:45.8]} 27. Nf2 {[%clk 0:01:38.6]} 27... Qf1+ {[%clk
0:01:43.8]} 28. Kf3 {[%clk 0:01:38.8]} 28... c4 {[%clk 0:01:32.5]} 29. Qd4
{[%clk 0:01:33.9]} 29... Nc5 {[%clk 0:01:30.2]} 30. e5 {[%clk 0:01:27.4]} 30...
Nd3 {[%clk 0:01:17]} 31. exf6+ {[%clk 0:01:27.2]} 31... exf6 {[%clk 0:01:17.1]}
32. Re7+ {[%clk 0:01:15.6]} 32... Kh6 {[%clk 0:01:16.9]} 33. Qxf6 {[%clk
0:01:07.6]} 33... Qxf2+ {[%clk 0:01:01.6]} 34. Kg4 {[%clk 0:01:07.1]} 34... Ne5+
{[%clk 0:00:43.5]} 35. Rxe5 {[%clk 0:01:05.9]} 35... Qxg3+ {[%clk 0:00:19.3]}
36. Kxg3 {[%clk 0:01:04.9]} 36... dxe5 {[%clk 0:00:19.9]} 37. fxe5 {[%clk
0:01:00.4]} 37... c3 {[%clk 0:00:19.8]} 38. Qf8+ {[%clk 0:00:59.8]} 38... Kh5
{[%clk 0:00:19.5]} 39. Qf3+ {[%clk 0:00:59.8]} 39... Kh6 {[%clk 0:00:20]} 40.
Qxc3 {[%clk 0:00:59.6]} 40... Rg1+ {[%clk 0:00:20]} 41. Kh2 {[%clk 0:00:59.5]}
41... Rf1 {[%clk 0:00:19]} 42. e6 {[%clk 0:00:58.4]} 42... Rf2+ {[%clk
0:00:19.1]} 43. Kg3 {[%clk 0:00:58.3]} 43... Rf8 {[%clk 0:00:16.8]} 44. e7
{[%clk 0:00:57.7]} 44... Rc8 {[%clk 0:00:17]} 45. Qxc8 {[%clk 0:00:49]} 45... g5
{[%clk 0:00:14.1]} 46. e8=Q {[%clk 0:00:48.5]} 46... g4 {[%clk 0:00:14.6]} 47.
Qce6+ {[%clk 0:00:47.7]} 1-0

[Event "*** Titled Tuesday Blitz"]
[Site "Chess.com"]
[Date "2021.04.20"]
[Round "4"]
[White "Korchmar_Vasiliy"]
[Black "Arystanner"]
[Result "1-0"]
[WhiteElo "2647"]
[BlackElo "2803"]
[TimeControl "180+1"]
[EndTime "10:37:36 PDT"]
[Termination "Korchmar_Vasiliy won on time"]

1. d4 {[%clk 0:03:00.9]} 1... d5 {[%clk 0:02:59.5]} 2. Nf3 {[%clk 0:03:01.4]}
2... e6 {[%clk 0:02:59.9]} 3. Bf4 {[%clk 0:03:01.9]} 3... Nf6 {[%clk 0:02:59.3]}
4. e3 {[%clk 0:03:01.9]} 4... c5 {[%clk 0:02:59.8]} 5. Nbd2 {[%clk 0:03:01.3]}
5... Nc6 {[%clk 0:03:00.1]} 6. c3 {[%clk 0:03:01.3]} 6... Nh5 {[%clk 0:03:00.3]}
7. Bg5 {[%clk 0:02:55.1]} 7... Qb6 {[%clk 0:02:58.9]} 8. Rb1 {[%clk 0:02:52.1]}
8... h6 {[%clk 0:02:58.2]} 9. Bh4 {[%clk 0:02:50.9]} 9... g5 {[%clk 0:02:58.3]}
10. Ne5 {[%clk 0:02:45.1]} 10... Nxe5 {[%clk 0:02:57.9]} 11. dxe5 {[%clk
0:02:44.8]} 11... Ng7 {[%clk 0:02:58]} 12. Bg3 {[%clk 0:02:42.3]} 12... Nf5
{[%clk 0:02:58.4]} 13. Bd3 {[%clk 0:02:37.6]} 13... Nxg3 {[%clk 0:02:58.3]} 14.
hxg3 {[%clk 0:02:38.5]} 14... Bg7 {[%clk 0:02:59]} 15. Nf3 {[%clk 0:02:01.8]}
15... Bd7 {[%clk 0:02:58.9]} 16. g4 {[%clk 0:01:50.1]} 16... O-O-O {[%clk
0:02:57.9]} 17. b4 {[%clk 0:01:47.3]} 17... Kb8 {[%clk 0:02:31.5]} 18. O-O
{[%clk 0:01:39.1]} 18... c4 {[%clk 0:02:19.9]} 19. Be2 {[%clk 0:01:38.7]} 19...
f6 {[%clk 0:02:05.8]} 20. Qd4 {[%clk 0:01:31.5]} 20... fxe5 {[%clk 0:01:50.5]}
21. Nxe5 {[%clk 0:01:30.2]} 21... Qc7 {[%clk 0:01:41]} 22. f4 {[%clk 0:01:29.4]}
22... Ba4 {[%clk 0:01:33.6]} 23. Bd1 {[%clk 0:01:25.6]} 23... Bxd1 {[%clk
0:01:26.6]} 24. Rbxd1 {[%clk 0:01:26.5]} 24... Rhf8 {[%clk 0:01:22]} 25. g3
{[%clk 0:01:19]} 25... Rf6 {[%clk 0:00:50.8]} 26. a4 {[%clk 0:01:11.6]} 26...
Rff8 {[%clk 0:00:45.9]} 27. a5 {[%clk 0:01:10.5]} 27... a6 {[%clk 0:00:39.7]}
28. Rb1 {[%clk 0:01:07.8]} 28... Bxe5 {[%clk 0:00:17.5]} 29. fxe5 {[%clk
0:01:08.7]} 29... Qh7 {[%clk 0:00:14.6]} 30. Qb6 {[%clk 0:00:35.8]} 30... Qe4
{[%clk 0:00:10.8]} 31. Rxf8 {[%clk 0:00:29.8]} 31... Rxf8 {[%clk 0:00:04.5]} 32.
Qd6+ {[%clk 0:00:29.9]} 1-0

[Event "*** Titled Tuesday Blitz"]
[Site "Chess.com"]
[Date "2021.04.20"]
[Round "4"]
[White "Fighterman91"]
[Black "Sadykov_Ramil"]
[Result "0-1"]
[WhiteElo "2614"]
[BlackElo "2481"]
[TimeControl "180+1"]
[EndTime "10:37:36 PDT"]
[Termination "Sadykov_Ramil won on time"]

1. e4 {[%clk 0:03:00.9]} 1... e5 {[%clk 0:02:53.9]} 2. Nf3 {[%clk 0:03:00.4]}
2... Nc6 {[%clk 0:02:53.7]} 3. d4 {[%clk 0:03:00.2]} 3... exd4 {[%clk
0:02:51.1]} 4. Nxd4 {[%clk 0:03:01.1]} 4... Nf6 {[%clk 0:02:47.8]} 5. Nxc6
{[%clk 0:03:00.8]} 5... bxc6 {[%clk 0:02:46.8]} 6. e5 {[%clk 0:03:01.3]} 6...
Qe7 {[%clk 0:02:43.6]} 7. Qe2 {[%clk 0:03:01.7]} 7... Nd5 {[%clk 0:02:42.9]} 8.
h4 {[%clk 0:03:02.4]} 8... Bb7 {[%clk 0:02:39.1]} 9. c4 {[%clk 0:02:37.2]} 9...
Nb6 {[%clk 0:02:38]} 10. Nc3 {[%clk 0:02:11.6]} 10... Qe6 {[%clk 0:02:28.1]} 11.
Bd2 {[%clk 0:01:51.4]} 11... O-O-O {[%clk 0:02:26.6]} 12. O-O-O {[%clk
0:01:50.9]} 12... Kb8 {[%clk 0:02:22]} 13. f4 {[%clk 0:01:25.9]} 13... Ba6
{[%clk 0:02:17.2]} 14. b3 {[%clk 0:01:18.8]} 14... Ba3+ {[%clk 0:02:13.9]} 15.
Kc2 {[%clk 0:01:09.5]} 15... Rhe8 {[%clk 0:01:34.2]} 16. Qf3 {[%clk 0:00:51.8]}
16... f6 {[%clk 0:01:12.6]} 17. exf6 {[%clk 0:00:36.8]} 17... Qxf6 {[%clk
0:01:13.5]} 18. Bd3 {[%clk 0:00:37.2]} 18... d5 {[%clk 0:01:12.3]} 19. c5 {[%clk
0:00:28.7]} 19... Bxd3+ {[%clk 0:01:08.5]} 20. Qxd3 {[%clk 0:00:29.6]} 20...
Bxc5 {[%clk 0:01:08.5]} 21. Qxh7 {[%clk 0:00:25.2]} 21... d4 {[%clk 0:00:52.8]}
22. Ne4 {[%clk 0:00:25.3]} 22... d3+ {[%clk 0:00:50.7]} 23. Kb1 {[%clk
0:00:25.8]} 23... Qd4 {[%clk 0:00:49.4]} 24. Nxc5 {[%clk 0:00:21.9]} 24... Qxc5
{[%clk 0:00:49.4]} 25. Rc1 {[%clk 0:00:05]} 25... Qf2 {[%clk 0:00:47.8]} 26.
Rhd1 {[%clk 0:00:05.3]} 26... Qxg2 {[%clk 0:00:45.1]} 27. Qf5 {[%clk 0:00:03.2]}
27... Re2 {[%clk 0:00:40]} 28. Qa5 {[%clk 0:00:03.1]} 28... Kb7 {[%clk
0:00:34.4]} 29. f5 {[%clk 0:00:02.7]} 29... Rd5 {[%clk 0:00:33.4]} 30. Qc3
{[%clk 0:00:03.2]} 30... Rxf5 {[%clk 0:00:28.9]} 31. Qxd3 {[%clk 0:00:03.1]}
31... Rd5 {[%clk 0:00:28.1]} 0-1

[Event "*** Titled Tuesday Blitz"]
[Site "Chess.com"]
[Date "2021.04.20"]
[Round "4"]
[White "dpopadic"]
[Black "SilviusTiberius"]
[Result "0-1"]
[WhiteElo "2378"]
[BlackElo "2575"]
[TimeControl "180+1"]
[EndTime "10:37:39 PDT"]
[Termination "SilviusTiberius won by resignation"]

1. e4 {[%clk 0:03:00.9]} 1... e5 {[%clk 0:02:59.6]} 2. Nf3 {[%clk 0:03:00.1]}
2... Nc6 {[%clk 0:02:59.9]} 3. Bb5 {[%clk 0:02:58]} 3... Nf6 {[%clk 0:02:59.7]}
4. O-O {[%clk 0:02:55.1]} 4... Nxe4 {[%clk 0:02:59.7]} 5. d4 {[%clk 0:02:54.3]}
5... Nd6 {[%clk 0:03:00]} 6. dxe5 {[%clk 0:02:53.8]} 6... Nxb5 {[%clk
0:02:59.1]} 7. a4 {[%clk 0:02:53.8]} 7... Nbd4 {[%clk 0:02:59.6]} 8. Nxd4 {[%clk
0:02:53.7]} 8... d5 {[%clk 0:03:00.1]} 9. exd6 {[%clk 0:02:46.3]} 9... Nxd4
{[%clk 0:02:54.3]} 10. Qxd4 {[%clk 0:02:41.9]} 10... Qxd6 {[%clk 0:02:52.9]} 11.
Qe4+ {[%clk 0:02:41.5]} 11... Qe6 {[%clk 0:02:40.2]} 12. Qd4 {[%clk 0:02:40.7]}
12... Qd6 {[%clk 0:02:35.2]} 13. Qe4+ {[%clk 0:02:40.4]} 13... Be7 {[%clk
0:02:26.1]} 14. Bf4 {[%clk 0:02:28.5]} 14... Qc6 {[%clk 0:02:24]} 15. Qxc6+
{[%clk 0:02:14.6]} 15... bxc6 {[%clk 0:02:24.9]} 16. Re1 {[%clk 0:02:12]} 16...
Be6 {[%clk 0:02:16.5]} 17. Bxc7 {[%clk 0:02:11.5]} 17... O-O {[%clk 0:02:13.6]}
18. Nc3 {[%clk 0:02:11.4]} 18... Rac8 {[%clk 0:02:12.4]} 19. Be5 {[%clk
0:02:09.2]} 19... Rfd8 {[%clk 0:02:10.5]} 20. Red1 {[%clk 0:02:05.9]} 20... Bf5
{[%clk 0:02:09.7]} 21. Rac1 {[%clk 0:01:39.3]} 21... Bg5 {[%clk 0:02:04.3]} 22.
f4 {[%clk 0:01:35.5]} 22... Be7 {[%clk 0:02:04.8]} 23. Kf1 {[%clk 0:01:21.7]}
23... f6 {[%clk 0:01:49.1]} 24. Bd4 {[%clk 0:01:16.1]} 24... Bd6 {[%clk
0:01:49.5]} 25. Be3 {[%clk 0:01:14.1]} 25... a5 {[%clk 0:01:32.7]} 26. Kf2
{[%clk 0:01:12.1]} 26... Bb4 {[%clk 0:01:29.2]} 27. h3 {[%clk 0:01:02]} 27...
Re8 {[%clk 0:01:27.4]} 28. Re1 {[%clk 0:00:53.9]} 28... h5 {[%clk 0:01:25.4]}
29. Bd4 {[%clk 0:00:50.8]} 29... Rxe1 {[%clk 0:01:23.8]} 30. Kxe1 {[%clk
0:00:44.8]} 30... Re8+ {[%clk 0:01:22.9]} 31. Kf2 {[%clk 0:00:44.6]} 31... Bd6
{[%clk 0:01:17.5]} 32. Be3 {[%clk 0:00:43.6]} 32... Rb8 {[%clk 0:01:12.3]} 33.
Nd1 {[%clk 0:00:34.2]} 33... Rb4 {[%clk 0:01:10.3]} 34. b3 {[%clk 0:00:27.8]}
34... Bxf4 {[%clk 0:01:08.9]} 35. Bxf4 {[%clk 0:00:21.8]} 35... Rxf4+ {[%clk
0:01:09.8]} 36. Ke3 {[%clk 0:00:20]} 36... Re4+ {[%clk 0:01:07.8]} 37. Kf2
{[%clk 0:00:19.3]} 37... h4 {[%clk 0:01:00.9]} 38. Ne3 {[%clk 0:00:18.9]} 38...
Be6 {[%clk 0:01:01]} 39. Rd1 {[%clk 0:00:17.3]} 39... f5 {[%clk 0:00:47]} 40.
Kf3 {[%clk 0:00:16.8]} 40... Rb4 {[%clk 0:00:42.8]} 41. Rd6 {[%clk 0:00:14.4]}
41... Kf7 {[%clk 0:00:41.8]} 42. Rxc6 {[%clk 0:00:11.7]} 42... f4 {[%clk
0:00:42.3]} 43. Nc4 {[%clk 0:00:11.3]} 43... Bd5+ {[%clk 0:00:41.9]} 0-1

[Event "*** Titled Tuesday Blitz"]
[Site "Chess.com"]
[Date "2021.04.20"]
[Round "4"]
[White "WinstonSilvakov"]
[Black "VladimirBugayev"]
[Result "0-1"]
[WhiteElo "2086"]
[BlackElo "2260"]
[TimeControl "180+1"]
[EndTime "10:37:42 PDT"]
[Termination "VladimirBugayev won by resignation"]

1. d4 {[%clk 0:03:00.9]} 1... Nf6 {[%clk 0:02:59.5]} 2. e3 {[%clk 0:03:00]} 2...
d5 {[%clk 0:02:58.5]} 3. Bd3 {[%clk 0:02:58.2]} 3... c5 {[%clk 0:02:59]} 4. c3
{[%clk 0:02:57.4]} 4... Nc6 {[%clk 0:02:58.9]} 5. f4 {[%clk 0:02:56.8]} 5... Bg4
{[%clk 0:02:52.8]} 6. Nf3 {[%clk 0:02:56.6]} 6... e6 {[%clk 0:02:51.8]} 7. Nbd2
{[%clk 0:02:55.1]} 7... c4 {[%clk 0:02:48]} 8. Bc2 {[%clk 0:02:54.5]} 8... Bf5
{[%clk 0:02:40]} 9. O-O {[%clk 0:02:52.8]} 9... b5 {[%clk 0:02:31.5]} 10. Ne5
{[%clk 0:02:51.9]} 10... Qc7 {[%clk 0:02:22]} 11. g4 {[%clk 0:02:28.2]} 11...
Bxc2 {[%clk 0:02:09]} 12. Qxc2 {[%clk 0:02:21.2]} 12... Nxe5 {[%clk 0:02:09]}
13. fxe5 {[%clk 0:02:16.1]} 13... Nxg4 {[%clk 0:02:09.4]} 14. Nf3 {[%clk
0:02:16.6]} 14... f5 {[%clk 0:02:08.3]} 15. exf6 {[%clk 0:02:14.4]} 15... gxf6
{[%clk 0:01:57.6]} 16. e4 {[%clk 0:02:04.4]} 16... Rg8 {[%clk 0:01:40.1]} 17.
Kh1 {[%clk 0:01:57.1]} 17... Bd6 {[%clk 0:01:39.6]} 18. exd5 {[%clk 0:01:45.9]}
18... exd5 {[%clk 0:01:05.6]} 19. h3 {[%clk 0:01:34.8]} 19... Qg7 {[%clk
0:00:30.4]} 20. Rg1 {[%clk 0:01:09.2]} 20... h5 {[%clk 0:00:29.2]} 21. hxg4
{[%clk 0:00:49.7]} 21... hxg4 {[%clk 0:00:28.1]} 22. Nh2 {[%clk 0:00:39.9]}
22... O-O-O {[%clk 0:00:14.9]} 23. Qf5+ {[%clk 0:00:34.9]} 23... Kc7 {[%clk
0:00:14.8]} 24. Bf4 {[%clk 0:00:30.8]} 24... g3 {[%clk 0:00:10.1]} 25. Bxd6+
{[%clk 0:00:23.7]} 25... Rxd6 {[%clk 0:00:11]} 26. Rg2 {[%clk 0:00:23.1]} 26...
Rh8 {[%clk 0:00:10]} 27. Rag1 {[%clk 0:00:19.3]} 27... Qh6 {[%clk 0:00:04.6]}
28. Re2 {[%clk 0:00:10.6]} 28... Qxh2+ {[%clk 0:00:03.8]} 0-1

[Event "*** Titled Tuesday Blitz"]
[Site "Chess.com"]
[Date "2021.04.20"]
[Round "4"]
[White "vovachesss"]
[Black "DamianoLew95"]
[Result "0-1"]
[WhiteElo "2691"]
[BlackElo "2518"]
[TimeControl "180+1"]
[EndTime "10:37:45 PDT"]
[Termination "DamianoLew95 won on time"]

1. e4 {[%clk 0:03:00.9]} 1... c5 {[%clk 0:02:58.2]} 2. c3 {[%clk 0:02:59.2]}
2... d5 {[%clk 0:02:57]} 3. exd5 {[%clk 0:03:00.1]} 3... Qxd5 {[%clk 0:02:57.7]}
4. d4 {[%clk 0:03:00.8]} 4... Nc6 {[%clk 0:02:58.1]} 5. Nf3 {[%clk 0:03:01]}
5... Nf6 {[%clk 0:02:58.2]} 6. Be2 {[%clk 0:02:58.5]} 6... cxd4 {[%clk
0:02:58.6]} 7. cxd4 {[%clk 0:02:56.1]} 7... Bg4 {[%clk 0:02:59]} 8. O-O {[%clk
0:02:56]} 8... e6 {[%clk 0:02:53]} 9. Nc3 {[%clk 0:02:56.4]} 9... Qa5 {[%clk
0:02:53]} 10. h3 {[%clk 0:02:51]} 10... Bh5 {[%clk 0:02:51.7]} 11. Be3 {[%clk
0:02:42.5]} 11... Be7 {[%clk 0:02:48.1]} 12. a3 {[%clk 0:02:42.2]} 12... O-O
{[%clk 0:02:45.3]} 13. b4 {[%clk 0:02:42.7]} 13... Qd8 {[%clk 0:02:42.7]} 14. b5
{[%clk 0:02:09.4]} 14... Na5 {[%clk 0:02:35.3]} 15. Ne5 {[%clk 0:02:09.8]} 15...
Bxe2 {[%clk 0:02:29.1]} 16. Qxe2 {[%clk 0:02:10.7]} 16... Rc8 {[%clk 0:02:22.2]}
17. Na4 {[%clk 0:02:01.3]} 17... Nb3 {[%clk 0:02:05]} 18. Rad1 {[%clk
0:01:42.4]} 18... Qa5 {[%clk 0:02:01.6]} 19. Nb2 {[%clk 0:01:02.4]} 19... Qxa3
{[%clk 0:01:17.7]} 20. Nbc4 {[%clk 0:00:58.5]} 20... Qa4 {[%clk 0:01:17]} 21. b6
{[%clk 0:00:54.7]} 21... a6 {[%clk 0:01:11.7]} 22. Rb1 {[%clk 0:00:43.7]} 22...
Rfd8 {[%clk 0:00:46.4]} 23. Qb2 {[%clk 0:00:25]} 23... Na5 {[%clk 0:00:44.8]}
24. Nd2 {[%clk 0:00:13.7]} 24... Rc2 {[%clk 0:00:39.9]} 25. Qa1 {[%clk
0:00:05.7]} 25... Qxa1 {[%clk 0:00:30.9]} 26. Rxa1 {[%clk 0:00:06.6]} 26... Nc6
{[%clk 0:00:30.9]} 27. Nxc6 {[%clk 0:00:04.5]} 27... Rxc6 {[%clk 0:00:31.8]} 28.
Rfb1 {[%clk 0:00:04.7]} 28... Nd5 {[%clk 0:00:30.1]} 29. Nb3 {[%clk 0:00:05.1]}
29... Rxb6 {[%clk 0:00:27.4]} 30. Na5 {[%clk 0:00:04.9]} 30... Rxb1+ {[%clk
0:00:23.3]} 31. Rxb1 {[%clk 0:00:05.8]} 31... b6 {[%clk 0:00:23.3]} 32. Nc6
{[%clk 0:00:04.7]} 32... Rd7 {[%clk 0:00:21.6]} 33. Ra1 {[%clk 0:00:01.7]} 33...
a5 {[%clk 0:00:20.6]} 34. Rc1 {[%clk 0:00:01.8]} 34... f6 {[%clk 0:00:19.6]} 0-1

[Event "*** Titled Tuesday Blitz"]
[Site "Chess.com"]
[Date "2021.04.20"]
[Round "4"]
[White "AlphaHero0"]
[Black "AlexSuv"]
[Result "0-1"]
[WhiteElo "2107"]
[BlackElo "2586"]
[TimeControl "180+1"]
[EndTime "10:37:45 PDT"]
[Termination "AlexSuv won on time"]

1. e4 {[%clk 0:03:00.9]} 1... c5 {[%clk 0:02:57.4]} 2. Nf3 {[%clk 0:03:00]} 2...
e6 {[%clk 0:02:57.7]} 3. b4 {[%clk 0:02:59.5]} 3... cxb4 {[%clk 0:02:57]} 4. d4
{[%clk 0:03:00]} 4... Nf6 {[%clk 0:02:57]} 5. Bd3 {[%clk 0:02:59.3]} 5... d5
{[%clk 0:02:54.5]} 6. e5 {[%clk 0:02:59.6]} 6... Ne4 {[%clk 0:02:55.2]} 7. O-O
{[%clk 0:02:59.4]} 7... Nc6 {[%clk 0:02:37.4]} 8. Re1 {[%clk 0:02:59.4]} 8... b6
{[%clk 0:02:28.7]} 9. Bxe4 {[%clk 0:02:50.5]} 9... dxe4 {[%clk 0:02:29.6]} 10.
Rxe4 {[%clk 0:02:50.1]} 10... Bb7 {[%clk 0:02:27.5]} 11. Rg4 {[%clk 0:02:48.5]}
11... Ne7 {[%clk 0:02:10.4]} 12. Be3 {[%clk 0:02:35.9]} 12... Nf5 {[%clk
0:02:04.5]} 13. c4 {[%clk 0:02:14.8]} 13... bxc3 {[%clk 0:02:01.9]} 14. Nxc3
{[%clk 0:02:14.1]} 14... Qd7 {[%clk 0:01:46.3]} 15. Rc1 {[%clk 0:01:05.8]} 15...
Rc8 {[%clk 0:01:38.9]} 16. Ne4 {[%clk 0:01:00.3]} 16... Rxc1 {[%clk 0:01:30.1]}
17. Qxc1 {[%clk 0:01:00.1]} 17... Be7 {[%clk 0:01:19.2]} 18. Bg5 {[%clk
0:00:39.4]} 18... Bxg5 {[%clk 0:01:10.6]} 19. Nexg5 {[%clk 0:00:39.4]} 19... h6
{[%clk 0:01:08.3]} 20. Ne4 {[%clk 0:00:35.3]} 20... Bxe4 {[%clk 0:01:03]} 21.
Rxe4 {[%clk 0:00:35]} 21... O-O {[%clk 0:01:03.6]} 22. g4 {[%clk 0:00:25.1]}
22... Ne7 {[%clk 0:00:52.6]} 23. g5 {[%clk 0:00:23.7]} 23... Nf5 {[%clk
0:00:51.9]} 24. gxh6 {[%clk 0:00:11.5]} 24... gxh6 {[%clk 0:00:52.8]} 25. Rg4+
{[%clk 0:00:09.4]} 25... Kh8 {[%clk 0:00:41.2]} 26. h3 {[%clk 0:00:08.1]} 26...
Rg8 {[%clk 0:00:36.8]} 27. Qf4 {[%clk 0:00:07.4]} 27... Qd5 {[%clk 0:00:32]} 28.
Kh2 {[%clk 0:00:07.6]} 28... Qxa2 {[%clk 0:00:31]} 29. Nh4 {[%clk 0:00:05.5]}
29... Rxg4 {[%clk 0:00:18.1]} 30. hxg4 {[%clk 0:00:06.4]} 30... Nxh4 {[%clk
0:00:18]} 31. Qxh6+ {[%clk 0:00:06.9]} 31... Kg8 {[%clk 0:00:18.6]} 32. Qxh4
{[%clk 0:00:07]} 32... Qd2 {[%clk 0:00:17.6]} 33. Qd8+ {[%clk 0:00:04.7]} 33...
Kh7 {[%clk 0:00:17.8]} 34. Qh4+ {[%clk 0:00:04.5]} 34... Qh6 {[%clk 0:00:17.6]}
0-1